bitfinex-derivatives/quotes_SOLF0:USTF0_20240902
["timestamp","ask_amount","ask_price","bid_price","bid_amount"]
[1725280349639,0.04819362,131.84,131.81,0.05543857]
[1725280349841,3.84099362,131.84,131.81,3.84873857]
[1725280350833,3.84099362,131.84,131.81,0.05543857]
[1725280351331,0.04819362,131.84,131.81,0.05543857]
[1725280351735,29.15,131.83,131.81,0.05543857]
[1725280351934,3.80822333,131.82,131.81,0.05543857]
[1725280352437,7.60142333,131.82,131.81,0.05543857]
[1725280352738,29.15,131.83,131.73,1.4627]
[1725280352934,29.15,131.8,131.7,32.0161]
[1725280353133,3.7947,131.77,131.7,33.3688]
[1725280353637,29.15,131.8,131.7,33.3688]
[1725280353638,0.05311317,131.75,131.74,3.7953]
[1725280353838,0.04796984,131.76,131.73,0.05413301]
[1725280354042,0.05053111,131.76,131.73,0.05413301]
[1725280354341,0.05053111,131.76,131.73,3.84973301]
[1725280356148,0.05053111,131.76,131.74,3.7954]
[1725280356342,0.05053111,131.76,131.73,0.05413301]
[1725280356538,0.05053111,131.76,131.73,1.51283301]
[1725280357246,0.05053111,131.76,131.74,3.7952]
[1725280357838,3.7939,131.8,131.73,1.51283301]
[1725280358041,3.7939,131.8,131.76,3.7947]
[1725280358240,3.81897533,131.81,131.72,3.80226196]
[1725280358442,29.15,131.81,131.71,29.15]
[1725280358641,3.8690702,131.8,131.71,29.15]
[1725280358851,0.0549769,131.77,131.75,0.04771636]
[1725280359043,0.0549769,131.77,131.75,3.84291636]
[1725280361347,3.8495769,131.77,131.75,3.84291636]
[1725280362558,0.0549769,131.77,131.75,29.19771636]
[1725280362764,3.77010982,131.82,131.76,3.71887518]
[1725280362954,4.3127,131.84,131.76,5.13997518]
[1725280363155,4.3127,131.84,131.76,1.4211]
[1725280363347,3.793,131.83,131.76,1.4211]
[1725280363547,3.8706815,131.82,131.76,5.19348691]
[1725280363766,0.0539956,131.8,131.78,0.0497628]
[1725280365454,0.0539956,131.8,131.79,3.7939]
[1725280367653,0.0539956,131.8,131.78,0.0497628]
[1725280368660,0.0539956,131.8,131.78,3.8440628]
[1725280370565,0.0539956,131.8,131.78,0.0497628]
[1725280372063,3.8477956,131.8,131.78,0.0497628]
[1725280372960,0.0539956,131.8,131.78,0.0497628]
[1725280374364,0.0539956,131.8,131.79,3.7941]
[1725280377374,0.0539956,131.8,131.78,0.0497628]
[1725280378064,3.8478956,131.8,131.78,0.0497628]
[1725280383071,3.7941,131.79,131.78,0.0497628]
[1725280383373,29.2039956,131.8,131.72,3.84192152]
[1725280383568,5.07692353,131.81,131.7,2.8024]
[1725280383569,3.7949,131.76,131.73,3.7956]
[1725280384168,3.84462626,131.76,131.73,3.84943494]
[1725280384876,0.04972626,131.76,131.74,3.7955]
[1725280387678,3.7954,131.75,131.73,0.05383494]
[1725280388881,3.7955,131.74,131.73,0.05383494]
[1725280389769,7.67367836,131.74,131.73,0.05383494]
[1725280389974,3.7955,131.74,131.73,0.05383494]
[1725280390176,7.62092694,131.74,131.73,0.05383494]
[1725280390381,3.7955,131.74,131.73,0.05383494]
[1725280391084,7.67975047,131.74,131.73,0.05383494]
[1725280391674,3.7955,131.74,131.73,0.05383494]
[1725280392078,7.5942853,131.74,131.73,0.05383494]
[1725280392282,3.7955,131.74,131.73,0.05383494]
[1725280392683,7.58783059,131.74,131.73,0.05383494]
[1725280393487,36.73783059,131.74,131.73,0.05383494]
[1725280398588,32.9455,131.74,131.73,0.05383494]
[1725280398794,3.7955,131.74,131.73,0.05383494]
[1725280399287,29.19972626,131.76,131.73,0.05383494]
[1725280399591,0.04972626,131.76,131.73,0.05383494]
[1725280400484,3.7954,131.75,131.73,0.05383494]
[1725280401492,3.7954,131.75,131.73,3.84963494]
[1725280401790,0.04972626,131.76,131.73,0.05383494]
[1725280402097,0.04972626,131.76,131.75,3.7952]
[1725280403488,0.04972626,131.76,131.73,0.05383494]
[1725280404388,3.84462626,131.76,131.73,3.84943494]
[1725280405498,3.84462626,131.76,131.74,3.7955]
[1725280405689,3.84462626,131.76,131.73,0.05383494]
[1725280406791,3.84462626,131.76,131.73,3.84943494]
[1725280408200,3.84462626,131.76,131.74,3.7955]
[1725280409297,3.84462626,131.76,131.73,3.84943494]
[1725280411899,15.51462626,131.76,131.73,3.84943494]
[1725280415205,11.71972626,131.76,131.74,3.7954]
[1725280415799,15.51472626,131.76,131.73,3.84953494]
[1725280416809,11.71972626,131.76,131.74,3.7955]
[1725280417107,0.04972626,131.76,131.74,3.7955]
[1725280417705,0.04972626,131.76,131.75,3.7952]
[1725280426312,0.04972626,131.76,131.73,0.05383494]
[1725280426313,0.04972626,131.76,131.74,3.7954]
[1725280428216,0.04972626,131.76,131.75,3.7952]
[1725280430921,3.84482626,131.76,131.73,0.05383494]
[1725280431121,0.04972626,131.76,131.73,0.05383494]
[1725280431515,0.04972626,131.76,131.75,3.7952]
[1725280433525,0.04972626,131.76,131.74,3.7953]
[1725280436324,3.84482626,131.76,131.74,3.7953]
[1725280440029,3.84482626,131.76,131.73,3.84943494]
[1725280440418,0.04972626,131.76,131.73,0.05383494]
[1725280440621,0.04972626,131.76,131.75,3.7952]
[1725280446830,0.04972626,131.76,131.74,3.7954]
[1725280448036,3.84472626,131.76,131.74,3.7954]
[1725280448229,3.84472626,131.76,131.73,3.84943494]
[1725280451342,3.7952,131.75,131.73,3.84943494]
[1725280455856,3.7952,131.75,131.73,0.05383494]
[1725280457154,3.7952,131.75,131.73,3.84953494]
[1725280458761,3.7952,131.75,131.73,0.05383494]
[1725280461559,0.04972626,131.76,131.73,0.05383494]
[1725280462156,3.84462626,131.76,131.74,3.7954]
[1725280462752,3.84462626,131.76,131.73,0.05383494]
[1725280462753,3.7954,131.75,131.73,3.84953494]
[1725280462959,0.04972626,131.76,131.73,0.05383494]
[1725280463261,0.04972626,131.76,131.74,3.7955]
[1725280463466,0.04972626,131.76,131.73,0.05383494]
[1725280464363,0.04972626,131.76,131.75,3.7952]
[1725280466956,15.52845032,131.83,131.75,11.67]
[1725280467264,15.52845032,131.83,131.77,11.67]
[1725280467265,11.67,131.83,131.77,11.67]
[1725280467463,3.7934,131.82,131.79,3.794]
[1725280467767,15.38004838,131.83,131.75,11.67]
[1725280467974,0.05623512,131.8,131.78,3.84726108]
[1725280469063,0.05623512,131.8,131.79,3.7941]
[1725280470763,11.67,131.86,131.83,3.7928]
[1725280471069,15.4616,131.88,131.81,11.67]
[1725280471266,11.67,131.88,131.81,11.67]
[1725280471968,0.04781025,131.86,131.83,0.05583813]
[1725280472371,0.04781025,131.86,131.84,3.7925]
[1725280473258,15.50991025,131.86,131.83,3.84863813]
[1725280473663,15.50991025,131.86,131.83,0.05583813]
[1725280473875,11.71781025,131.86,131.83,0.05583813]
[1725280474572,3.7925,131.85,131.83,0.05583813]
[1725280476872,3.7926,131.84,131.83,0.05583813]
[1725280478571,15.4624,131.85,131.83,0.05583813]
[1725280479372,3.7926,131.84,131.83,0.05583813]
[1725280481280,15.39325197,131.84,131.78,3.7941]
[1725280481479,16.81465197,131.84,131.78,3.7941]
[1725280481674,11.67,131.82,131.78,3.7941]
[1725280481974,11.67,131.82,131.75,1.413]
[1725280482167,11.67,131.82,131.75,13.083]
[1725280482373,0.0487309,131.8,131.77,0.04817813]
[1725280483181,0.0487309,131.8,131.78,3.7942]
[1725280484882,3.8425309,131.8,131.77,3.84267813]
[1725280485378,0.0487309,131.8,131.77,3.84267813]
[1725280486976,3.8426309,131.8,131.77,3.84267813]
[1725280488276,3.8426309,131.8,131.78,3.7943]
[1725280489785,3.7942,131.79,131.77,0.04817813]
[1725280490387,3.8426309,131.8,131.77,3.84257813]
[1725280491580,3.8426309,131.8,131.77,7.62425843]
[1725280492685,3.8426309,131.8,131.78,3.7943]
[1725280493082,3.8426309,131.8,131.77,3.82985843]
[1725280493289,3.8426309,131.8,131.77,3.84267813]
[1725280494085,3.8426309,131.8,131.77,0.04817813]
[1725280494290,3.8426309,131.8,131.78,3.7943]
[1725280495989,3.7941,131.79,131.77,3.84267813]
[1725280500493,3.7941,131.79,131.77,0.04817813]
[1725280500692,3.7943,131.78,131.77,0.04817813]
[1725280501197,15.4643,131.78,131.77,0.04817813]
[1725280502603,3.7943,131.78,131.77,0.04817813]
[1725280513219,15.4643,131.78,131.77,0.04817813]
[1725280521722,19.28015141,131.78,131.77,0.04817813]
[1725280524733,7.61015141,131.78,131.77,0.04817813]
[1725280524926,3.7943,131.78,131.77,0.04817813]
[1725280535624,15.4643,131.78,131.77,0.04817813]
[1725280541933,19.26733605,131.78,131.77,0.04817813]
[1725280542639,7.59733605,131.78,131.77,0.04817813]
[1725280548750,3.7943,131.78,131.77,0.04817813]
[1725280549443,7.62086546,131.78,131.77,0.04817813]
[1725280550336,3.7943,131.78,131.77,0.04817813]
[1725280550748,7.61023927,131.78,131.77,0.04817813]
[1725280552363,3.7943,131.78,131.77,0.04817813]
[1725280553256,7.56375001,131.78,131.77,0.04817813]
[1725280555353,19.23375001,131.78,131.77,0.04817813]
[1725280561458,7.56375001,131.78,131.77,0.04817813]
[1725280561756,19.23375001,131.78,131.77,0.04817813]
[1725280568456,3.7958,131.73,131.71,63.69410477]
[1725280569062,3.7958,131.73,131.7,10.47871698]
[1725280569258,3.7958,131.73,131.7,6.6956]
[1725280569859,3.84559123,131.73,131.7,6.74338892]
[1725280570366,3.7961,131.72,131.7,2.94688892]
[1725280570567,0.04979123,131.73,131.7,2.94688892]
[1725280570764,10.51082658,131.82,131.71,11.67]
[1725280570969,3.71745236,131.81,131.75,11.67]
[1725280571159,14.882186,131.86,131.76,6.48146107]
[1725280571366,11.67,131.83,131.76,18.15146107]
[1725280571568,3.7934,131.82,131.77,3.7944]
[1725280571759,3.7934,131.82,131.78,0.05466337]
[1725280572069,0.05817524,131.81,131.78,0.05466337]
[1725280573058,3.85167524,131.81,131.78,0.05466337]
[1725280573967,3.7939,131.8,131.78,0.05466337]
[1725280574364,3.7941,131.79,131.78,0.05466337]
[1725280577372,3.795,131.76,131.72,3.796]
[1725280577673,15.465,131.76,131.72,3.796]
[1725280578368,0.05133209,131.75,131.73,0.04898543]
[1725280580476,11.72133209,131.75,131.73,0.04898543]
[1725280580866,11.67,131.74,131.73,0.04898543]
[1725280581371,15.4655,131.74,131.73,0.04898543]
[1725280581977,3.7968,131.7,131.66,14.4609]
[1725280582172,3.7968,131.7,131.66,18.24791495]
[1725280582369,3.7968,131.7,131.66,6.5887]
[1725280582569,3.7968,131.7,131.65,153.1086]
[1725280582570,11.67,131.71,131.65,153.1086]
[1725280582877,11.72649996,131.69,131.67,0.05437582]
[1725280583172,15.51517216,131.69,131.67,0.05437582]
[1725280583373,11.67,131.68,131.67,0.05437582]
[1725280583570,15.46119153,131.68,131.67,0.05437582]
[1725280583966,3.7981,131.65,131.61,6.6189]
[1725280584166,11.67,131.66,131.61,2.8197]
[1725280584362,225.0,131.73,131.58,1.4543]
[1725280584363,11.67,131.63,131.58,1.4543]
[1725280584567,3.7992,131.62,131.58,1.4543]
[1725280584773,11.67,131.59,131.41,61.08314915]
[1725280584973,0.05663928,131.51,131.49,11.72191544]
[1725280585278,1.3648,131.61,131.5,1.4434]
[1725280585477,11.67,131.57,131.54,0.05061092]
[1725280585775,15.52220497,131.57,131.54,0.05061092]
[1725280586076,0.05150497,131.57,131.55,29.2]
[1725280586379,1.4257,131.67,131.56,2.7872]
[1725280586380,29.2,131.64,131.56,2.7872]
[1725280586676,29.2,131.64,131.57,3.84791191]
[1725280586981,3.799,131.62,131.57,3.8003]
[1725280587482,3.7993,131.61,131.56,6.5879]
[1725280587775,0.05086616,131.61,131.58,0.0522343]
[1725280588078,29.24816378,131.61,131.58,0.05827721]
[1725280588477,3.7998,131.59,131.58,0.05827721]
[1725280590179,32.9998,131.59,131.58,0.05827721]
[1725280590976,29.2,131.59,131.41,61.08314915]
[1725280591173,29.2,131.54,131.44,30.6737]
[1725280591474,29.2,131.54,131.46,3.8034]
[1725280591677,2.8176,131.58,131.46,3.8034]
[1725280591876,0.04953659,131.53,131.51,3.8019]
[1725280592075,1.4207,131.58,131.51,3.8019]
[1725280592076,1.4207,131.58,131.51,3.85914047]
[1725280592276,29.2,131.57,131.51,0.05724047]
[1725280592482,0.05295167,131.56,131.51,0.05724047]
[1725280592678,0.05295167,131.56,131.52,0.05343683]
[1725280592975,225.0,131.7,131.59,3.7997]
[1725280593174,29.2,131.67,131.59,3.7997]
[1725280593368,3.7982,131.65,131.59,3.7997]
[1725280593577,3.7982,131.65,131.6,3.7995]
[1725280593774,3.7986,131.64,131.61,0.05208546]
[1725280594082,3.84759705,131.64,131.61,0.05208546]
[1725280594272,3.84749705,131.64,131.61,0.05208546]
[1725280594673,29.2,131.63,131.52,3.81337894]
[1725280594874,3.7997,131.6,131.52,29.2]
[1725280595181,29.2,131.61,131.53,3.77668642]
[1725280595383,29.2,131.61,131.55,3.801]
[1725280595778,0.0512826,131.59,131.57,0.05755677]
[1725280596271,3.8511826,131.59,131.57,0.05755677]
[1725280596674,10.51082658,131.77,131.58,29.2]
[1725280596872,29.2,131.72,131.6,29.2]
[1725280597070,29.2,131.72,131.63,29.2]
[1725280597374,29.2,131.72,131.6,29.2]
[1725280597375,3.77933915,131.71,131.65,29.2]
[1725280597574,1.3884,131.76,131.67,29.2]
[1725280597779,1.3884,131.76,131.71,3.7962]
[1725280598077,0.052773,131.69,131.67,0.05422164]
[1725280598277,1.3884,131.76,131.66,36.46]
[1725280598580,0.05569832,131.72,131.7,0.04938709]
[1725280598779,3.85179832,131.72,131.7,0.04938709]
[1725280599080,0.05569832,131.72,131.7,0.04938709]
[1725280599383,3.7964,131.71,131.7,0.04938709]
[1725280599682,5.2699,131.71,131.7,0.04938709]
[1725280599871,3.7969,131.7,131.64,3.7982]
[1725280600071,3.81655905,131.7,131.64,3.7982]
[1725280600278,3.81655905,131.7,131.63,3.7986]
[1725280600984,0.05676414,131.68,131.65,0.04967558]
[1725280602280,3.7975,131.67,131.65,0.04967558]
[1725280603484,3.85406414,131.68,131.65,0.04967558]
[1725280604077,0.05676414,131.68,131.65,0.04967558]
[1725280605476,3.85396414,131.68,131.65,0.04967558]
[1725280607084,36.46,131.67,131.47,36.46]
[1725280607389,40.18199012,131.68,131.56,36.46]
[1725280607585,36.46,131.68,131.56,40.16300037]
[1725280608186,0.05473793,131.63,131.61,0.0512131]
[1725280608382,0.0536946,131.63,131.61,0.0512131]
[1725280609391,3.8525946,131.63,131.61,0.0512131]
[1725280609791,0.0536946,131.63,131.61,0.0512131]
[1725280611080,3.8523946,131.63,131.61,0.0512131]
[1725280611689,0.0536946,131.63,131.61,3.8504131]
[1725280612190,0.0536946,131.63,131.62,3.799]
[1725280613189,2.8905,131.71,131.64,3.7983]
[1725280613392,3.7975,131.67,131.64,3.7983]
[1725280613899,3.7975,131.67,131.56,3.70300037]
[1725280613900,36.46,131.69,131.59,36.46]
[1725280614088,0.05379238,131.65,131.63,0.05207678]
[1725280614396,3.7985,131.64,131.63,0.05207678]
[1725280615382,3.85199238,131.65,131.63,0.05207678]
[1725280616592,0.05379238,131.65,131.63,0.05207678]
[1725280621099,3.85209238,131.65,131.63,0.05207678]
[1725280621299,0.05379238,131.65,131.63,0.05207678]
[1725280621600,3.85199238,131.65,131.63,0.05207678]
[1725280622397,3.7984,131.64,131.63,0.05207678]
[1725280623006,3.85199238,131.65,131.63,0.05207678]
[1725280624509,3.7984,131.64,131.63,0.05207678]
[1725280624713,36.46,131.65,131.54,1.3798]
[1725280624903,36.46,131.65,131.54,5.23910259]
[1725280625107,3.7994,131.61,131.57,3.8002]
[1725280625801,0.05091428,131.6,131.58,0.0510982]
[1725280626599,3.7998,131.59,131.58,0.0510982]
[1725280628410,3.8008,131.56,131.52,7.61886106]
[1725280629299,0.05563474,131.55,131.53,0.05726521]
[1725280630516,3.85673474,131.55,131.53,0.05726521]
[1725280631715,0.05563474,131.55,131.54,3.8013]
[1725280631901,0.05563474,131.55,131.53,3.93231062]
[1725280632305,3.8003,131.58,131.53,3.93231062]
[1725280632614,3.8003,131.58,131.53,3.87504541]
[1725280632801,3.8003,131.58,131.51,36.46]
[1725280633006,3.8004,131.57,131.54,3.8011]
[1725280633406,0.04809741,131.57,131.54,0.05162826]
[1725280633615,3.801,131.55,131.54,0.05162826]
[1725280637909,0.04809741,131.57,131.54,0.05162826]
[1725280640006,0.04809741,131.57,131.55,3.8008]
[1725280640807,0.04809741,131.57,131.56,3.8007]
[1725280641010,0.04809741,131.57,131.54,0.05162826]
[1725280641416,0.04809741,131.57,131.55,3.8008]
[1725280641803,0.04809741,131.57,131.54,0.05162826]
[1725280642003,0.04809741,131.57,131.55,3.801]
[1725280642409,0.04809741,131.57,131.54,0.05162826]
[1725280643609,0.04809741,131.57,131.56,3.8007]
[1725280645216,0.04809741,131.57,131.55,3.8009]
[1725280646316,3.84859741,131.57,131.54,3.85292826]
[1725280647017,33.001,131.55,131.54,0.05162826]
[1725280648315,0.04809741,131.57,131.54,0.05162826]
[1725280648712,3.7983,131.65,131.56,29.2]
[1725280648912,3.7983,131.65,131.56,33.06098198]
[1725280649317,3.7983,131.65,131.61,3.7991]
[1725280649518,3.7984,131.64,131.61,3.7991]
[1725280649719,3.85527684,131.64,131.61,3.85524684]
[1725280650120,3.85527684,131.64,131.61,0.05614684]
[1725280650319,29.25687684,131.64,131.61,0.05614684]
[1725280651220,3.7987,131.63,131.61,0.05614684]
[1725280652026,3.799,131.62,131.61,0.05614684]
[1725280652228,29.25687684,131.64,131.61,0.05614684]
[1725280652832,3.7989,131.63,131.61,0.05614684]
[1725280654435,29.25687684,131.64,131.61,3.85524684]
[1725280654634,0.05687684,131.64,131.61,3.85524684]
[1725280655838,3.85527684,131.64,131.61,3.85524684]
[1725280656838,0.05687684,131.64,131.61,3.85524684]
[1725280657036,0.05687684,131.64,131.62,3.799]
[1725280658237,0.05687684,131.64,131.63,3.7987]
[1725280659942,0.05687684,131.64,131.63,7.54651551]
[1725280660833,0.05687684,131.64,131.63,3.7987]
[1725280661030,0.05687684,131.64,131.63,7.55867264]
[1725280661937,0.05687684,131.64,131.63,3.7987]
[1725280666346,0.05687684,131.64,131.63,7.65894166]
[1725280666545,0.05687684,131.64,131.63,3.7987]
[1725280667141,0.05687684,131.64,131.63,7.60006756]
[1725280668947,0.05687684,131.64,131.63,3.7987]
[1725280671241,0.05687684,131.64,131.62,3.7988]
[1725280671647,0.05687684,131.64,131.61,3.87954471]
[1725280671844,0.05687684,131.64,131.61,0.05614684]
[1725280672040,3.85537684,131.64,131.62,3.7989]
[1725280672949,0.05687684,131.64,131.62,3.7989]
[1725280673643,3.85547684,131.64,131.61,3.85514684]
[1725280673946,0.05687684,131.64,131.61,0.05614684]
[1725280674154,3.799,131.62,131.61,0.05614684]
[1725280678251,1.4743,131.63,131.57,7.66922097]
[1725280678451,1.4743,131.63,131.55,29.2]
[1725280678750,3.7998,131.6,131.56,3.8005]
[1725280678955,1.4743,131.63,131.56,3.8005]
[1725280679251,0.04792163,131.61,131.58,0.05672028]
[1725280679449,3.7998,131.59,131.58,0.05672028]
[1725280680246,3.84742163,131.61,131.58,3.85682028]
[1725280680445,0.04792163,131.61,131.58,0.05672028]
[1725280681045,3.7996,131.6,131.58,0.05672028]
[1725280682051,3.7998,131.59,131.58,0.05672028]
[1725280685054,6.4221228,131.6,131.54,3.8011]
[1725280686254,0.05001561,131.58,131.56,0.05308624]
[1725280686453,3.8004,131.57,131.56,0.05308624]
[1725280688455,3.85011561,131.58,131.56,0.05308624]
[1725280688652,0.05001561,131.58,131.56,0.05308624]
[1725280689049,0.05001561,131.58,131.57,3.8004]
[1725280689646,0.05001561,131.58,131.57,33.0004]
[1725280691260,0.05001561,131.58,131.57,3.8004]
[1725280697664,0.05001561,131.58,131.56,0.05308624]
[1725280698669,3.85031561,131.58,131.56,3.85368624]
[1725280698860,0.05001561,131.58,131.56,3.85368624]
[1725280699257,0.05001561,131.58,131.57,3.8004]
[1725280701862,3.85031561,131.58,131.56,0.05308624]
[1725280702262,0.05001561,131.58,131.56,0.05308624]
[1725280703065,3.8004,131.57,131.56,0.05308624]
[1725280708762,0.05001561,131.58,131.56,3.85358624]
[1725280710575,3.85021561,131.58,131.56,3.85358624]
[1725280711863,0.05001561,131.58,131.56,3.85358624]
[1725280712069,0.05001561,131.58,131.57,3.8004]
[1725280718279,3.85021561,131.58,131.56,3.85358624]
[1725280718890,3.8004,131.57,131.56,0.05308624]
[1725280719181,11.68,131.58,131.51,11.68]
[1725280719376,3.8009,131.56,131.53,3.8015]
[1725280719583,11.68,131.57,131.48,1.4549]
[1725280719776,11.68,131.57,131.5,11.68]
[1725280720074,11.68,131.57,131.48,1.4549]
[1725280720281,0.04879914,131.54,131.51,0.05774635]
[1725280720468,3.85029914,131.54,131.51,3.85974635]
[1725280720773,0.04879914,131.54,131.51,3.85974635]
[1725280720969,3.8018,131.52,131.51,0.05774635]
[1725280721573,3.8017,131.53,131.51,0.05774635]
[1725280722481,0.04879914,131.54,131.51,0.05774635]
[1725280723184,0.04879914,131.54,131.52,3.8017]
[1725280723482,0.04879914,131.54,131.51,0.05774635]
[1725280723981,0.04879914,131.54,131.52,3.8017]
[1725280726181,0.04879914,131.54,131.51,3.85984635]
[1725280726481,0.04879914,131.54,131.51,0.05774635]
[1725280726784,3.8017,131.53,131.51,0.05774635]
[1725280730885,0.04879914,131.54,131.51,0.05774635]
[1725280731678,0.04879914,131.54,131.52,3.8018]
[1725280731879,4.1777,131.59,131.46,49.518]
[1725280731880,2.8086,131.59,131.53,11.68]
[1725280732187,2.8086,131.59,131.56,3.8005]
[1725280732778,2.85852486,131.59,131.56,0.05734039]
[1725280732983,6.65852486,131.59,131.56,0.05734039]
[1725280735894,0.04992486,131.59,131.58,3.8001]
[1725280736192,0.04992486,131.59,131.58,15.4801]
[1725280736586,0.04992486,131.59,131.58,19.26933766]
[1725280738192,2.8383,131.66,131.58,15.46923766]
[1725280738392,11.68,131.69,131.62,11.68]
[1725280739192,3.70546228,131.68,131.62,15.55639595]
[1725280739498,3.85229433,131.67,131.64,0.04911881]
[1725280740582,3.7978,131.66,131.64,0.04911881]
[1725280740998,2.98529433,131.67,131.64,0.04911881]
[1725280741892,15.4779,131.66,131.64,0.04911881]
[1725280742089,11.68,131.66,131.64,0.04911881]
[1725280742787,3.7981,131.65,131.64,0.04911881]
[1725280744289,11.68,131.65,131.57,11.68]
[1725280744493,11.68,131.63,131.57,3.8555967]
[1725280744699,3.7991,131.62,131.58,3.8001]
[1725280745093,11.68,131.63,131.57,3.85369739]
[1725280745386,11.68,131.63,131.58,3.8001]
[1725280745593,11.68,131.63,131.59,0.05072975]
[1725280745794,0.0480275,131.61,131.59,0.05072975]
[1725280747693,3.80894766,131.61,131.54,3.76054016]
[1725280747898,2.7980275,131.61,131.53,29.19]
[1725280748091,3.7999,131.59,131.55,3.8008]
[1725280748295,2.75,131.61,131.55,3.8008]
[1725280748488,0.05589354,131.59,131.55,3.8008]
[1725280748689,0.05589354,131.59,131.57,0.0495564]
[1725280748895,3.8002,131.58,131.57,0.0495564]
[1725280756806,3.8007,131.57,131.53,32.9914]
[1725280757005,5.23658057,131.6,131.53,3.8014]
[1725280757502,3.8009,131.56,131.53,3.8014]
[1725280757904,3.85918362,131.56,131.53,3.8014]
[1725280758298,3.801,131.55,131.52,3.8017]
[1725280760907,3.8014,131.54,131.51,32.992]
[1725280761606,3.85908362,131.56,131.53,3.8014]
[1725280762110,0.05828362,131.56,131.51,29.19]
[1725280762312,3.8011,131.55,131.52,3.8017]
[1725280765921,3.8011,131.55,131.52,3.8018]
[1725280766717,0.05828362,131.56,131.53,11.68]
[1725280767220,3.85898362,131.56,131.53,11.68]
[1725280767413,0.05828362,131.56,131.53,11.68]
[1725280767815,0.05828362,131.56,131.54,3.8011]
[1725280769514,3.85908362,131.56,131.54,3.8011]
[1725280770716,3.85908362,131.56,131.53,15.4814]
[1725280771526,3.85908362,131.56,131.54,3.8012]
[1725280771825,0.05828362,131.56,131.54,3.8012]
[1725280772414,0.05828362,131.56,131.55,15.481]
[1725280772617,11.68,131.65,131.55,11.68]
[1725280772818,11.68,131.65,131.58,11.68]
[1725280773016,7.62320275,131.64,131.6,3.7994]
[1725280773519,3.82460275,131.64,131.58,15.45898578]
[1725280773718,3.7989,131.63,131.59,3.7997]
[1725280773926,7.54671418,131.63,131.59,3.7997]
[1725280774122,7.60063047,131.63,131.61,0.05792085]
[1725280775722,3.80173047,131.63,131.61,0.05792085]
[1725280776132,0.05391629,131.63,131.61,3.85702085]
[1725280776728,0.05391629,131.63,131.61,0.05792085]
[1725280778931,0.05391629,131.63,131.61,3.85712085]
[1725280780821,0.05391629,131.63,131.62,3.799]
[1725280782930,0.05391629,131.63,131.61,3.85702085]
[1725280783135,0.05391629,131.63,131.61,0.05792085]
[1725280783526,0.05391629,131.63,131.61,3.85702085]
[1725280785332,3.85261629,131.63,131.61,3.85702085]
[1725280786631,3.85261629,131.63,131.61,0.05792085]
[1725280789041,3.799,131.62,131.61,0.05792085]
[1725280789229,29.18,131.62,131.54,29.18]
[1725280789431,3.8002,131.58,131.55,3.8007]
[1725280790334,3.85029043,131.58,131.55,3.8007]
[1725280791335,0.05009043,131.58,131.56,3.8007]
[1725280793341,0.05009043,131.58,131.57,3.8004]
[1725280793833,0.05009043,131.58,131.57,7.66062179]
[1725280794033,0.05009043,131.58,131.57,19.33062179]
[1725280796842,0.05009043,131.58,131.57,15.4704]
[1725280797037,0.05009043,131.58,131.57,3.8004]
[1725280798845,0.05009043,131.58,131.57,15.4704]
[1725280800838,0.05009043,131.58,131.57,19.35958446]
[1725280802943,0.05009043,131.58,131.57,15.4704]
[1725280806440,0.05009043,131.58,131.57,19.30723295]
[1725280807742,3.7988,131.63,131.6,11.67]
[1725280808047,1.3882,131.66,131.61,11.67]
[1725280808254,1.4512,131.69,131.64,3.7981]
[1725280808547,1.4512,131.69,131.63,11.67]
[1725280808749,0.05432441,131.67,131.65,0.04838256]
[1725280809245,3.7978,131.66,131.65,0.04838256]
[1725280809446,0.05432441,131.67,131.65,0.04838256]
[1725280809838,3.84669407,131.67,131.65,0.04838256]
[1725280810043,3.85202441,131.67,131.65,0.04838256]
[1725280811049,7.60952235,131.67,131.65,0.04838256]
[1725280813549,3.81182235,131.67,131.65,3.84638256]
[1725280813746,0.05432441,131.67,131.65,3.84638256]
[1725280814046,0.05432441,131.67,131.65,15.51638256]
[1725280815544,0.05432441,131.67,131.66,3.7978]
[1725280816149,0.05432441,131.67,131.65,0.04838256]
[1725280816348,3.7984,131.64,131.6,11.67]
[1725280816549,5.19512237,131.66,131.6,11.67]
[1725280816744,1.4512,131.69,131.63,11.67]
[1725280816946,3.7974,131.68,131.64,11.67]
[1725280817151,3.7974,131.68,131.64,15.4681]